bitfinex/quotes_ETHUSD_20250722
["timestamp","ask_amount","ask_price","bid_price","bid_amount"]
[1753196483178,0.03098836,3707.6,3706.8,0.1997203]
[1753196483379,2.69742718,3707.3,3707.0,4.571]
[1753196483690,2.69745758,3707.2,3706.5,3.46533802]
[1753196483893,2.69754792,3707.1,3706.6,4.57]
[1753196484095,2.69743495,3707.3,3706.6,7.26788349]
[1753196484305,0.4426,3707.7,3706.6,4.57]
[1753196484603,1.2273,3707.6,3706.5,4.566]
[1753196484776,0.58098836,3707.5,3706.4,4.567]
[1753196484978,2.69796303,3706.5,3706.4,4.567]
[1753196485195,0.03098836,3706.6,3706.0,2.69830329]
[1753196485427,0.03098836,3706.6,3706.0,4.567]
[1753196485704,0.03098836,3706.6,3705.6,4.566]
[1753196485903,2.69803582,3706.4,3705.7,2.69853494]
[1753196486077,2.69808913,3706.4,3705.7,2.69852733]
[1753196486287,0.7847,3706.7,3705.6,5.0226]
[1753196486490,0.8028,3707.1,3705.7,0.48928545]
[1753196486690,2.69762135,3707.0,3706.1,0.7788]
[1753196486920,2.69762135,3707.0,3706.2,4.564]
[1753196487092,0.8028,3707.1,3706.2,4.564]
[1753196487295,0.03098836,3706.9,3706.1,5.3418]
[1753196487497,2.69780687,3706.8,3705.9,7.2613536]
[1753196487721,0.03098836,3706.9,3705.9,4.563]
[1753196487722,0.03098836,3706.7,3705.9,4.563]
[1753196487923,0.03098836,3706.7,3705.8,5.26118854]
[1753196487924,0.03098836,3706.7,3705.7,9.272]
[1753196488215,2.69833397,3706.0,3705.7,9.272]
[1753196488594,2.69847266,3705.8,3705.7,9.272]
[1753196488804,2.69861098,3705.7,3705.1,0.001]
[1753196489007,2.69862579,3705.6,3705.1,0.001]
[1753196489209,2.69890964,3705.2,3705.1,0.001]
[1753196489783,3.91410964,3705.2,3705.1,0.001]
[1753196490415,3.945098,3705.2,3705.1,0.001]
[1753196490587,4.60948871,3705.2,3705.1,0.001]
[1753196490979,4.13590035,3705.2,3705.1,0.001]
[1753196491417,4.57850035,3705.2,3705.1,0.001]
[1753196492530,3.47150964,3705.2,3705.1,0.001]
[1753196493210,2.69890964,3705.2,3705.1,0.001]
[1753196493925,3.50079612,3705.5,3705.1,0.001]
[1753196494100,2.83330964,3705.2,3705.1,0.001]
[1753196494914,0.1344,3705.2,3705.1,0.001]
[1753196495334,0.1344,3705.2,3705.1,0.27100866]
[1753196495537,0.1344,3705.2,3705.1,7.40998248]
[1753196495835,2.83319571,3705.4,3705.1,4.711]
[1753196496040,2.69890964,3705.2,3705.1,0.001]
[1753196496406,2.729898,3705.2,3705.1,0.001]
[1753196496605,0.03098836,3705.7,3705.1,0.001]
[1753196496807,2.69844844,3705.9,3705.2,2.6988581]
[1753196497030,0.1344,3705.8,3705.2,3.09589391]
[1753196497239,2.83289256,3705.8,3705.2,0.39703581]
[1753196497443,2.83289256,3705.8,3705.1,0.1354]
[1753196497444,2.69872365,3705.5,3705.1,0.1354]
[1753196497647,0.1344,3705.4,3705.1,0.001]
[1753196497942,2.6988368,3705.3,3705.1,0.001]
[1753196498246,2.69890964,3705.2,3705.1,0.001]
[1753196498543,0.1344,3705.2,3705.1,0.001]
[1753196499240,2.83330964,3705.2,3705.1,0.001]
[1753196499620,0.1344,3705.2,3705.1,0.001]
[1753196500230,2.83330964,3705.2,3705.1,0.001]
[1753196500544,0.1344,3705.2,3705.1,0.001]
[1753196500751,2.83330964,3705.2,3705.1,0.001]
[1753196501330,0.1344,3705.2,3705.1,0.001]
[1753196501535,2.83330964,3705.2,3705.1,0.001]
[1753196502241,3.38651746,3705.2,3705.1,0.001]
[1753196503120,0.1344,3705.2,3705.1,0.001]
[1753196503322,2.83330964,3705.2,3705.1,0.001]
[1753196503557,0.1344,3705.2,3705.1,0.001]
[1753196504219,0.1344,3705.2,3705.1,2.69998248]
[1753196504555,0.1344,3705.2,3705.1,0.001]
[1753196504921,0.1344,3705.2,3705.1,3.16228248]
[1753196505123,0.1344,3705.2,3705.1,0.4633]
[1753196505452,0.1344,3705.2,3705.1,0.001]
[1753196505660,0.1344,3705.2,3705.1,2.69998248]
[1753196505864,18.00489849,3706.5,3705.1,1.7824981]
[1753196506033,0.1344,3705.8,3705.1,5.9705981]
[1753196506236,0.1344,3705.8,3705.6,2.69860666]
[1753196506564,0.1344,3705.8,3705.7,2.69854548]
[1753196506773,0.1344,3706.1,3705.7,2.69850502]
[1753196506975,0.1344,3706.1,3705.5,4.6474]
[1753196507189,0.1344,3706.1,3705.6,4.71]
[1753196507364,0.1344,3706.1,3706.0,2.69832703]
[1753196507680,0.7769,3707.2,3706.3,2.69803774]
[1753196507824,0.1344,3706.6,3706.3,0.4657]
[1753196508022,0.1344,3706.6,3706.4,0.4657]
[1753196508224,3.47435377,3707.2,3706.5,2.69796303]
[1753196508423,0.1344,3706.8,3706.6,0.0269789]
[1753196508666,0.1344,3707.0,3706.8,2.6977407]
[1753196508877,0.1344,3707.0,3706.5,2.7249377]
[1753196509034,0.1344,3707.0,3706.9,3.5126719]
[1753196509240,0.1344,3707.5,3707.4,2.69729501]
[1753196509465,0.1344,3707.5,3706.9,5.94907671]
[1753196509466,0.1344,3707.5,3707.1,2.69746497]
[1753196509771,0.1344,3707.5,3707.4,2.69730808]
[1753196510560,0.1344,3707.5,3707.3,2.69732567]
[1753196510895,0.1344,3707.5,3706.9,5.4564]
[1753196511190,0.1344,3707.5,3707.0,4.505]
[1753196511349,0.1344,3707.5,3707.2,2.69745238]
[1753196511669,2.69735849,3707.4,3707.1,4.501]
[1753196511968,0.1344,3707.2,3706.9,4.499]
[1753196512169,0.1344,3707.2,3706.9,7.66237076]
[1753196512468,0.1344,3707.2,3707.1,2.69752636]
[1753196512669,0.1344,3707.2,3707.0,0.4657]
[1753196512969,6.27981316,3708.1,3708.0,37.16851271]
[1753196513156,8.94791656,3708.1,3708.0,37.16851271]
[1753196513536,10.19811656,3708.1,3708.0,14.07572426]
[1753196513738,4.3411,3707.9,3706.2,2.69815532]
[1753196513938,0.1344,3706.6,3706.3,4.493]
[1753196514171,0.1344,3706.6,3706.4,0.4657]
[1753196514476,0.1344,3706.6,3706.3,4.493]
[1753196514769,0.1344,3706.6,3706.4,4.491]
[1753196515136,0.1344,3706.6,3706.4,4.9567]
[1753196515336,0.1344,3706.6,3706.1,0.1344]
[1753196515537,0.1344,3706.4,3705.8,0.1344]
[1753196515743,0.7917,3707.0,3705.8,0.1344]
[1753196515744,0.55,3706.8,3705.8,2.69846987]
[1753196515959,0.1344,3706.2,3705.9,4.487]
[1753196516156,0.1344,3706.2,3705.6,0.1344]
[1753196516380,0.1344,3706.0,3705.7,7.18352584]
[1753196516783,0.1344,3706.0,3705.7,2.69852584]
[1753196517079,0.1344,3706.0,3705.7,4.484]
[1753196517765,0.1344,3706.0,3705.4,0.6001]
[1753196517967,0.1344,3706.0,3705.4,0.1344]
[1753196518166,0.03098836,3705.9,3705.4,0.1344]
[1753196518359,0.03098836,3705.9,3705.2,4.479]
[1753196518553,0.1344,3705.5,3705.2,4.479]
[1753196518780,0.1344,3705.5,3705.1,0.001]
[1753196518781,2.86408305,3705.5,3705.1,0.001]
[1753196518948,0.03098836,3705.5,3705.1,0.001]
[1753196519151,2.69871898,3705.5,3705.1,0.001]
[1753196519493,2.69864474,3705.6,3705.1,0.001]
[1753196519780,2.69876494,3705.4,3705.1,0.001]
[1753196519983,2.69883856,3705.3,3705.1,0.001]
[1753196520183,2.69890964,3705.2,3705.1,0.001]
[1753196520602,4.06080964,3705.2,3705.1,0.001]
[1753196520800,4.550898,3705.2,3705.1,0.001]
[1753196520945,2.69913508,3704.9,3704.3,0.001]
[1753196521145,0.1344,3704.4,3704.3,0.001]
[1753196521448,3.51082289,3705.2,3704.3,0.001]
[1753196521449,0.1344,3704.6,3704.3,0.001]
[1753196521650,2.83375905,3704.6,3704.3,0.001]
[1753196521871,0.03098836,3704.5,3704.3,0.001]
[1753196522150,4.05889249,3704.4,3704.3,0.001]
[1753196522345,4.51799249,3704.4,3704.3,0.001]
[1753196522953,3.50860179,3704.8,3704.3,0.001]
[1753196523148,0.55,3704.9,3704.3,0.001]
[1753196523475,3.5740503,3704.9,3704.3,0.001]
[1753196523675,2.69932703,3704.7,3704.3,0.001]
[1753196523885,0.87490622,3704.9,3704.3,0.001]
[1753196524086,0.55,3704.9,3704.3,0.001]
[1753196524398,2.69932222,3704.7,3704.3,0.001]
[1753196524606,0.55,3704.9,3704.3,0.001]
[1753196524896,0.804,3705.0,3704.4,2.69943287]
[1753196525109,0.1344,3704.7,3704.3,0.4667]
[1753196525298,0.1344,3704.7,3704.3,0.60986]
[1753196525471,0.1344,3704.7,3704.3,3.16624576]
[1753196525672,0.1344,3704.7,3704.3,0.4667]
[1753196525907,0.7836,3705.5,3704.7,2.69921758]
[1753196526092,0.1344,3705.0,3704.4,5.0641]
[1753196526413,2.83347478,3705.0,3704.4,4.5984]
[1753196526580,0.1344,3705.0,3704.4,7.29789101]
[1753196526777,0.1344,3705.0,3704.6,2.69934597]
[1753196527012,0.1344,3705.0,3704.5,4.463]
[1753196527314,0.1344,3704.6,3704.4,4.461]
[1753196527518,2.83376554,3704.6,3704.3,0.001]
[1753196527693,0.1344,3704.6,3704.3,0.001]
[1753196528020,2.6992874,3704.7,3704.3,0.001]
[1753196528021,0.1344,3704.4,3704.3,0.001]
[1753196528576,0.1344,3704.4,3704.3,3.16626536]
[1753196528828,0.8046,3705.1,3704.3,3.92888934]
[1753196528982,0.1344,3704.9,3704.6,2.69930064]
[1753196529185,0.1344,3704.9,3704.6,0.4657]
[1753196529519,0.1344,3704.9,3704.8,2.69920103]
[1753196529678,1.93576912,3705.8,3704.8,0.4657]
[1753196529883,0.1344,3705.3,3705.0,2.69898265]
[1753196530073,0.1344,3705.3,3705.1,3.16465176]
[1753196530279,0.1344,3705.3,3705.2,2.69890964]
[1753196530925,0.1344,3705.3,3705.2,3.16460964]
[1753196531078,15.3046,3706.0,3705.2,3.16460964]
[1753196531079,0.1344,3705.6,3705.5,2.69865355]
[1753196531281,0.03098836,3706.4,3706.3,2.69810862]
[1753196531516,0.8246,3707.1,3706.3,4.453]
[1753196531686,0.8246,3707.1,3706.3,7.15110664]
[1753196532019,1.2294,3707.5,3706.3,4.453]
[1753196532175,1.57294,3707.4,3706.5,2.69796303]
[1753196532515,0.7703,3707.5,3706.6,0.4657]
[1753196532914,0.7703,3707.5,3707.1,2.69751919]
[1753196533216,2.69703311,3707.8,3706.8,4.454]
[1753196533419,0.03098836,3707.7,3706.8,4.454]
[1753196533604,0.7656,3707.9,3706.8,4.454]
[1753196533605,0.34954652,3707.8,3706.8,4.454]
[1753196533919,2.69752075,3707.2,3706.5,4.452]
[1753196534129,2.69752669,3707.1,3706.5,4.452]
[1753196534428,0.8033,3706.9,3705.7,0.4657]
[1753196534583,0.55,3706.7,3705.8,4.452]
[1753196534785,0.55,3706.7,3705.7,0.4657]
[1753196534786,2.6982839,3706.1,3705.7,0.4657]
[1753196534987,0.03098836,3706.0,3705.2,0.4657]
[1753196535197,2.6985225,3705.8,3705.3,4.452]
[1753196535397,0.03098836,3705.7,3705.1,0.8025]
[1753196535597,3.24796303,3706.5,3704.3,0.76362654]
[1753196535598,2.69898665,3705.1,3704.6,1.4790349]
[1753196535813,2.69893263,3705.2,3704.6,1.2752]
[1753196536085,0.03098836,3705.8,3704.6,1.2752]
[1753196536290,2.69890124,3705.3,3704.6,1.2752]
[1753196536613,0.03098836,3705.2,3704.3,0.001]
[1753196536785,0.03098836,3705.2,3704.3,4.451]
[1753196536786,0.55,3705.2,3704.3,4.451]
[1753196536981,2.69921477,3704.8,3704.3,0.001]
[1753196537215,2.69934675,3704.6,3704.3,0.001]
[1753196537387,2.69925418,3704.8,3704.3,0.001]
[1753196537587,2.69933035,3704.7,3704.3,0.4737]
[1753196537789,14.5,3705.3,3704.4,0.4727]
[1753196538089,2.69919961,3704.9,3704.4,0.4727]
[1753196538401,5.8114,3705.9,3704.3,0.001]
[1753196538402,2.6992684,3704.8,3704.3,0.001]
[1753196538719,2.69914426,3704.9,3704.3,0.001]
[1753196538945,2.69896556,3705.2,3704.4,3.17219249]
[1753196539090,2.69918869,3704.9,3704.3,0.001]
[1753196539290,2.69920571,3704.8,3704.3,0.001]
[1753196539485,2.69914634,3704.9,3704.3,0.001]
[1753196539694,2.69914634,3704.9,3704.6,1.5]
[1753196539891,0.59477295,3705.2,3704.6,1.5]
[1753196540090,2.69927389,3704.7,3704.6,1.5]
[1753196540326,14.5,3705.6,3704.6,1.5]
[1753196540327,0.8124,3705.9,3704.6,1.9727]
[1753196540490,3.46804809,3706.4,3704.8,0.7748]
[1753196540491,1.5543963,3706.4,3704.8,0.7748]
[1753196540690,0.7844,3706.9,3705.1,2.69898248]
[1753196540890,2.69737606,3707.4,3706.7,2.69776192]
[1753196540891,0.7844,3707.4,3706.7,2.69776192]
[1753196541090,0.7844,3707.4,3706.9,2.6976167]
[1753196541310,1.2159,3707.9,3706.9,2.69765724]
[1753196541514,0.1344,3707.0,3706.7,2.6978034]
[1753196541730,0.1344,3707.0,3706.5,2.69796303]
[1753196541893,0.1344,3707.0,3706.7,2.69781183]
[1753196542502,0.1344,3707.0,3706.8,2.69770616]
[1753196542687,0.1344,3707.0,3706.4,2.83236655]
[1753196542890,0.1344,3707.0,3706.3,4.9197]
[1753196542891,0.1344,3706.6,3706.3,7.61778084]
[1753196543124,0.1344,3706.6,3706.4,2.69803212]
[1753196543324,0.1344,3706.6,3706.3,7.61773813]
[1753196543731,0.1344,3706.6,3706.3,4.9197]
[1753196544131,0.1344,3706.6,3706.3,4.447]
[1753196544438,0.1344,3706.6,3706.0,0.1344]
[1753196544730,2.69808603,3706.4,3705.8,4.446]
[1753196545094,2.69808603,3706.4,3705.3,0.7901]
[1753196545095,0.03098836,3706.3,3705.3,0.7901]
[1753196545291,0.55,3706.4,3705.4,4.444]
[1753196545506,2.69849274,3705.8,3705.4,4.444]
[1753196545721,2.69849274,3705.8,3705.1,2.69898008]
[1753196545934,0.55,3705.3,3704.3,0.001]
[1753196546234,4.457,3705.5,3704.3,0.4737]
[1753196546398,4.457,3705.5,3704.4,0.02699492]
[1753196546399,2.69876396,3705.4,3704.4,0.02699492]
[1753196546595,2.69896029,3705.2,3704.3,0.4737]
[1753196546806,0.03098836,3705.1,3704.4,2.69949249]
[1753196546993,15.283,3705.7,3704.7,2.69925833]
[1753196546994,2.69883211,3705.4,3704.7,2.69925833]
[1753196547219,2.69885009,3705.3,3704.6,2.69932939]
[1753196547422,2.69885009,3705.3,3704.5,3.17210008]
[1753196547734,0.03098836,3705.5,3704.5,1.16596066]
[1753196547931,2.69891145,3705.2,3704.5,1.16596066]
[1753196548096,2.69891145,3705.2,3704.5,0.4727]
[1753196548432,3.24862405,3705.6,3704.5,0.4727]
[1753196548628,2.69837792,3706.0,3705.0,2.69899971]
[1753196548629,2.69853674,3705.8,3705.0,2.69899971]
[1753196548835,2.69832703,3706.0,3705.0,0.49969055]
[1753196549338,2.69816406,3706.3,3705.0,8.04694721]
[1753196549536,2.69816406,3706.3,3705.2,2.69886253]
[1753196549700,2.69816406,3706.3,3705.1,0.4727]
[1753196549701,2.69825422,3706.1,3705.1,0.4727]
[1753196549900,0.002,3705.8,3705.1,0.4727]
[1753196550099,2.69859882,3705.7,3705.1,0.4727]
[1753196550295,0.002,3705.8,3705.3,1.5]
[1753196550497,0.002,3705.8,3705.1,3.70376761]
[1753196550810,0.002,3705.8,3705.3,2.6988368]
[1753196551011,0.002,3705.8,3705.4,0.02698763]
[1753196551232,0.002,3705.8,3705.4,0.49968763]
[1753196551432,0.002,3705.8,3705.5,0.79255244]
[1753196551814,0.002,3705.8,3705.6,0.4727]
[1753196552003,0.002,3705.8,3705.7,0.7705]
[1753196552402,0.002,3705.8,3705.7,1.2432]
[1753196552934,0.002,3705.8,3705.7,3.96873093]
[1753196553139,0.002,3705.8,3705.7,5.08047115]
[1753196553560,0.002,3705.8,3705.7,2.38192567]
[1753196553730,0.002,3705.8,3705.7,2.35494022]
[1753196554137,0.002,3705.8,3705.7,5.08047115]
[1753196554524,0.002,3705.8,3705.7,5.21487115]
[1753196554763,0.002,3705.8,3705.7,3.98934022]
[1753196554964,0.002,3705.8,3705.7,10.01814548]
[1753196555945,0.002,3705.8,3705.7,14.72814548]
[1753196557828,0.002,3705.8,3705.7,17.72814548]
[1753196559566,0.002,3705.8,3705.7,13.28614548]
[1753196559741,0.002,3705.8,3705.7,17.71814548]
[1753196560068,0.002,3706.6,3706.5,3.44816303]
[1753196560267,0.002,3706.6,3706.5,12.58816303]
[1753196560467,0.002,3706.6,3706.5,13.06086303]
[1753196560674,0.002,3706.6,3706.5,13.19526303]
[1753196560842,0.002,3706.6,3706.5,8.76526303]
[1753196561167,0.002,3706.6,3706.5,14.3395945]
[1753196562445,0.002,3706.6,3706.5,11.64163147]
[1753196562648,0.002,3706.6,3706.5,17.3395945]
[1753196563155,2.83120242,3708.1,3707.4,0.7797]
[1753196563368,0.1344,3708.1,3707.5,4.44797235]
[1753196563575,0.1344,3708.1,3707.6,0.1344]
[1753196563741,2.69706988,3707.8,3707.3,0.1344]
[1753196563945,2.6969711,3707.9,3707.3,0.1344]
[1753196564146,0.8176,3708.0,3707.3,0.1344]
[1753196564345,0.1344,3708.1,3707.5,2.69721672]
[1753196564644,0.1344,3708.1,3707.6,4.5554]
[1753196564847,0.4315,3708.4,3707.5,4.421]
[1753196565043,0.1344,3707.9,3707.3,0.1344]
[1753196565281,0.787,3707.7,3707.4,4.422]
[1753196565457,2.69717931,3707.6,3707.4,4.422]
[1753196565655,0.787,3707.7,3707.3,0.1344]
[1753196565899,1.35379,3707.7,3707.2,4.422]
[1753196566056,0.1344,3707.3,3707.2,4.422]
[1753196566772,2.83178084,3707.3,3707.2,4.422]
[1753196567086,0.1344,3707.3,3707.2,4.422]
[1753196567482,2.83178084,3707.3,3707.2,4.422]
[1753196567657,2.69766844,3707.0,3706.5,0.1344]
[1753196567861,0.55600646,3707.3,3706.4,0.1344]
[1753196568086,0.1344,3707.2,3706.6,2.69783469]
[1753196568286,0.1344,3707.2,3706.7,7.11676596]
[1753196568482,0.1344,3707.2,3706.8,0.02697744]
[1753196568692,0.1344,3707.4,3706.9,3.13891503]
[1753196568880,0.1344,3707.4,3707.0,2.69756593]
[1753196569085,3.48074857,3708.1,3707.2,2.6974536]
[1753196569267,0.1344,3707.6,3707.4,2.69724365]
[1753196569466,0.1344,3707.6,3707.5,2.69723533]
[1753196569664,0.1344,3707.6,3707.2,3.13875066]
[1753196569999,0.48793518,3708.0,3707.2,3.13875066]
[1753196570000,2.69663136,3708.4,3707.7,2.69707359]
[1753196570195,0.1344,3708.0,3707.5,4.44597235]
[1753196570406,0.7839,3708.5,3707.6,0.4413]
[1753196570611,0.1344,3708.4,3708.0,2.6968196]
[1753196570773,0.1344,3708.4,3707.8,2.8313901]
[1753196570774,0.1344,3708.4,3708.1,2.69679348]
[1753196571108,0.1344,3708.4,3708.2,2.69672556]
[1753196571405,3.45426277,3708.9,3708.2,2.69671068]
[1753196571607,2.69672617,3708.2,3708.0,0.1344]
[1753196571806,0.1344,3708.3,3707.8,4.418]
[1753196572008,0.1344,3708.3,3707.8,7.11501434]
[1753196572192,1.07378415,3708.9,3707.9,3.13824436]
[1753196572386,0.1344,3708.6,3708.0,0.1344]
[1753196572775,0.1344,3708.6,3708.0,2.83125808]
[1753196573322,0.1344,3708.6,3707.9,0.4413]
[1753196573323,0.03098836,3708.5,3707.8,7.11500536]
[1753196573471,2.69665345,3708.3,3707.9,4.417]
[1753196573670,2.69665345,3708.3,3708.1,1.5]
[1753196573871,2.83100517,3708.4,3708.1,1.5]
[1753196574209,0.1344,3708.4,3708.1,1.5]
[1753196575718,0.1344,3708.6,3708.2,3.13795951]
[1753196576069,0.1344,3708.6,3708.2,0.4413]
[1753196576495,0.00458367,3709.0,3708.3,7.55494785]
[1753196576696,2.69622668,3708.9,3708.3,7.68933061]
[1753196577014,2.83514157,3709.0,3708.4,2.69656485]
[1753196577220,2.83514157,3709.0,3708.9,2.6962172]
[1753196577221,0.00458367,3709.0,3708.9,2.6962172]
[1753196577521,0.00458367,3709.0,3708.5,1.03859877]
[1753196577722,0.00458367,3709.0,3708.0,3.0]
[1753196577723,0.00458367,3709.0,3708.6,4.417]
[1753196577921,2.70074253,3709.0,3708.6,4.417]
[1753196578218,0.35576676,3709.0,3708.2,0.7838]
[1753196578523,2.6962172,3708.9,3708.3,4.417]
[1753196578718,2.69636563,3708.7,3708.3,4.417]
[1753196579020,0.00458367,3709.0,3708.9,2.6962172]
[1753196579223,0.00458367,3709.0,3708.9,8.3878172]
[1753196579594,0.00458367,3709.0,3708.9,3.9708172]
[1753196579799,0.00458367,3709.0,3708.9,5.7036]
[1753196580212,0.00458367,3709.0,3708.9,1.2746]
[1753196580433,0.00458367,3709.0,3708.9,5.7026]
[1753196581042,0.00458367,3709.0,3708.9,5.7006]
[1753196581211,0.00458367,3709.0,3708.9,8.9670772]
[1753196581824,0.00458367,3709.0,3708.9,6.27086]
[1753196582510,0.00458367,3709.0,3708.9,1.01156]
[1753196582875,0.00458367,3709.0,3708.2,2.69672329]
[1753196582876,2.69652276,3708.5,3708.1,1.5]
[1753196583024,2.69667674,3708.3,3708.1,5.926]
[1753196583207,3.48284639,3708.6,3708.1,5.926]
[1753196583408,0.00458367,3709.0,3708.1,6.5186]
[1753196583663,0.00458367,3709.0,3708.1,5.926]
[1753196584178,2.6962172,3708.9,3708.1,1.5]
[1753196584381,2.69668093,3708.3,3708.1,1.5]
[1753196584581,2.69656947,3708.5,3708.1,1.5]
[1753196584730,0.03098836,3708.8,3708.2,4.422]
[1753196585076,2.69665345,3708.3,3708.2,4.422]
[1753196585281,3.52042617,3708.2,3708.1,1.5]
[1753196585444,3.97752617,3708.2,3708.1,1.5]
[1753196585631,2.6976701,3707.0,3706.2,0.7681]
[1753196585831,2.69754103,3707.1,3706.4,4.0]
[1753196586079,2.6976308,3707.0,3706.5,1.1887257]
[1753196586374,2.6975377,3707.1,3706.5,1.6300257]
[1753196586541,2.6978244,3706.7,3706.5,1.6300257]
[1753196586731,2.69812449,3706.3,3706.0,0.4413]
[1753196586933,3.0,3707.8,3705.6,0.20169715]
[1753196586934,2.69818142,3706.2,3706.1,4.0]
[1753196587131,2.69818142,3706.2,3705.3,4.421]
[1753196587132,0.4571,3706.2,3705.3,4.421]
[1753196587430,0.4571,3706.2,3705.5,0.1344]
[1753196587431,2.69854636,3705.7,3705.5,0.1344]
[1753196587833,2.69849391,3705.8,3705.5,0.1344]
[1753196588351,0.1344,3706.2,3705.5,0.1344]
[1753196588533,2.69842295,3705.9,3705.5,0.1344]
[1753196588845,2.69870641,3705.5,3705.3,4.421]
[1753196589045,2.69876396,3705.4,3705.3,4.421]
[1753196589364,2.6987098,3705.5,3705.3,4.421]
[1753196589565,2.69874518,3705.5,3705.3,4.421]
[1753196589875,2.6986183,3705.6,3705.3,4.421]
[1753196590235,0.1344,3705.7,3705.3,4.421]
[1753196590430,2.69876396,3705.4,3705.3,4.421]
[1753196590635,0.1344,3705.7,3705.3,4.421]
[1753196590832,2.69876396,3705.4,3705.3,4.421]
[1753196591060,0.7734,3705.6,3705.3,4.421]
[1753196591488,0.1344,3705.7,3705.3,4.421]
[1753196591710,2.69850116,3705.8,3705.4,0.1344]
[1753196592010,0.1344,3706.1,3705.4,0.1344]
[1753196592374,2.83267485,3706.1,3705.4,0.1344]
[1753196592588,2.83267485,3706.1,3705.4,2.83316367]
[1753196592787,2.69833179,3706.0,3705.4,0.1344]
[1753196592992,2.69856716,3705.7,3705.4,0.1344]
[1753196593200,0.1344,3705.8,3705.3,4.417]
[1753196593360,2.69855095,3705.7,3705.3,4.417]
[1753196593563,0.1344,3705.8,3705.3,4.417]
[1753196593805,0.7734,3706.5,3705.4,0.4413]
[1753196594006,0.7734,3706.5,3705.7,0.1344]
[1753196594007,0.9078,3706.5,3705.7,0.1344]
[1753196594210,0.1344,3706.5,3705.7,4.57938545]
[1753196594357,0.1344,3706.5,3706.4,2.69803582]
[1753196594702,0.7697,3707.5,3706.8,2.6977401]
[1753196594918,0.1344,3707.1,3706.6,4.418]
[1753196595208,0.7697,3707.5,3706.6,4.418]
[1753196595209,0.7697,3707.5,3706.7,0.4413]
[1753196595443,0.4571,3708.5,3707.6,2.69714351]
[1753196595711,0.4571,3708.5,3706.8,0.02697744]
[1753196595712,0.1344,3708.3,3707.9,2.69692469]
[1753196595874,0.1344,3708.3,3708.0,2.69686031]
[1753196596219,0.1344,3708.3,3708.1,0.02696798]
[1753196596365,0.1344,3708.7,3708.3,2.69659596]
[1753196596566,0.1344,3708.7,3708.1,0.46826798]
[1753196596776,0.1344,3708.7,3708.2,2.69672617]
[1753196596985,0.1344,3708.7,3708.1,0.46826798]
[1753196596986,0.1344,3708.7,3708.1,3.16501717]
[1753196597164,0.1344,3708.7,3708.1,0.46826798]
[1753196597508,0.1344,3708.9,3708.3,0.1344]
[1753196598290,2.83063036,3708.9,3708.3,0.16136653]
[1753196598461,2.6964307,3708.7,3708.3,0.1344]
[1753196598658,0.1344,3708.9,3708.3,0.1344]
[1753196598892,2.83062236,3708.9,3708.3,0.1344]
[1753196599087,2.6962899,3708.8,3708.3,0.1344]
[1753196599679,2.69637051,3708.7,3708.3,0.1344]
[1753196600872,3.18973885,3708.9,3708.3,0.1344]
[1753196601199,2.696378,3708.7,3708.3,0.1344]
[1753196601503,2.6966585,3708.3,3708.0,0.1344]
[1753196601808,2.69679889,3708.1,3707.5,0.4736]
[1753196602101,2.69679889,3708.1,3707.0,0.8147]
[1753196602102,0.7674,3708.0,3707.0,1.02040404]
[1753196602266,0.7674,3708.0,3707.1,8.5514]
[1753196602267,0.1344,3707.7,3707.1,8.5514]
[1753196602468,0.1344,3707.9,3707.3,0.1344]
[1753196602714,0.1344,3708.4,3707.7,0.1344]
[1753196603008,0.1344,3708.6,3707.9,2.69694436]
[1753196603209,2.69604966,3709.2,3708.5,2.69646275]
[1753196603364,0.1344,3709.2,3708.7,2.69635473]
[1753196603863,0.1344,3709.2,3708.8,0.4736]
[1753196604328,0.1344,3709.2,3708.5,4.5514]
[1753196604483,2.69648089,3708.6,3708.1,4.417]
[1753196605018,2.69678339,3708.2,3708.0,0.1344]
[1753196605304,0.1344,3708.4,3707.9,4.416]
[1753196605674,2.69670168,3708.3,3707.9,4.416]
[1753196605874,0.1344,3708.4,3707.9,7.11294107]
[1753196606082,2.69669821,3708.3,3707.9,4.416]
[1753196606287,0.1344,3708.4,3708.0,4.416]
[1753196606490,2.69686923,3708.1,3708.0,4.416]
[1753196606700,2.83126923,3708.1,3708.0,4.416]
[1753196606904,0.1344,3708.1,3707.5,0.1344]
[1753196607116,2.69678729,3708.2,3707.8,4.416]
[1753196607278,0.1344,3707.8,3707.5,4.416]
[1753196607714,0.1344,3707.8,3707.2,0.1344]
[1753196607715,0.8326,3707.7,3707.2,0.1344]
[1753196608009,0.1344,3707.3,3706.7,0.1344]
[1753196608183,2.69767309,3706.9,3706.8,4.416]
[1753196608689,0.1344,3707.0,3706.8,4.416]
[1753196609011,2.69758941,3707.1,3706.8,4.416]
[1753196609178,0.03098836,3707.2,3706.8,4.416]
[1753196609713,2.69753429,3707.1,3706.8,4.416]
[1753196609910,2.72845858,3707.2,3706.8,4.416]
[1753196610098,2.6976563,3707.0,3706.7,4.416]
[1753196610437,2.69772418,3706.9,3706.7,4.416]
[1753196610777,2.83201803,3707.0,3706.7,4.416]
[1753196610980,0.1344,3707.0,3706.7,4.416]
[1753196611477,0.1344,3707.0,3706.4,6.473]
[1753196611674,0.55,3706.8,3705.8,0.001]
[1753196611914,2.69837749,3706.0,3705.8,0.001]
[1753196612124,2.69794099,3706.6,3705.8,4.417]
[1753196612294,2.69832703,3706.0,3705.8,4.417]
[1753196612489,0.1344,3706.1,3705.8,4.417]
[1753196612490,2.69839984,3705.9,3705.8,4.417]
[1753196612693,2.69839984,3705.9,3705.8,0.001]
[1753196612890,3.48959984,3705.9,3705.8,0.001]
[1753196613819,3.5205882,3705.9,3705.8,0.001]